[Event "Titled Tuesday Blitz December 13 Early 2022"]
[White "Kalashian, David"]
[Black "Hirneise, Jens"]
[WhiteFideId "13302418"]
[BlackFideId "24614734"]
[WhiteElo "2490"]
[BlackElo "2345"]
[Result "1/2-1/2"]
[Round "04"]
[TimeControl "180+1"]
[Date "2022.12.14"]
[WhiteClock "0:00:23"]
[BlackClock "0:00:20"]

1. d4 {[%clk 0:02:59]}  d6 {[%clk 0:02:59]} 2. e4 {[%clk 0:02:57]}  Nf6 {[%clk 0:02:59]} 3. Nc3 {[%clk 0:02:57]}  e5 {[%clk 0:02:58]} 4. Nf3 {[%clk 0:02:52]}  Nbd7 {[%clk 0:02:57]} 5. Bc4 {[%clk 0:02:51]}  Be7 {[%clk 0:02:57]} 6. O-O {[%clk 0:02:49]}  O-O {[%clk 0:02:45]} 7. a4 {[%clk 0:02:46]}  a6 {[%clk 0:02:43]} 8. Re1 {[%clk 0:02:45]}  b6 {[%clk 0:02:41]} 9. h3 {[%clk 0:02:32]}  c6 {[%clk 0:02:35]} 10. dxe5 {[%clk 0:02:22]}  Nxe5 {[%clk 0:02:30]} 11. Nxe5 {[%clk 0:02:18]}  dxe5 {[%clk 0:02:31]} 12. Be3 {[%clk 0:02:19]}  Qc7 {[%clk 0:02:10]} 13. Qe2 {[%clk 0:02:10]}  b5 {[%clk 0:01:53]} 14. axb5 {[%clk 0:02:04]}  cxb5 {[%clk 0:01:53]} 15. Bxb5 {[%clk 0:02:00]}  Bb7 {[%clk 0:01:47]} 16. Bd3 {[%clk 0:01:50]}  a5 {[%clk 0:01:45]} 17. Bg5 {[%clk 0:01:38]}  Kh8 {[%clk 0:01:39]} 18. Bxf6 {[%clk 0:01:34]}  Bxf6 {[%clk 0:01:38]} 19. Nd5 {[%clk 0:01:34]}  Bxd5 {[%clk 0:01:36]} 20. exd5 {[%clk 0:01:35]}  g6 {[%clk 0:01:37]} 21. c4 {[%clk 0:01:29]}  Rfb8 {[%clk 0:01:33]} 22. Rac1 {[%clk 0:01:19]}  Qc5 {[%clk 0:01:25]} 23. Qe3 {[%clk 0:01:16]}  Qxe3 {[%clk 0:01:05]} 24. fxe3 {[%clk 0:01:14]}  Rxb2 {[%clk 0:01:04]} 25. c5 {[%clk 0:01:14]}  a4 {[%clk 0:00:59]} 26. c6 {[%clk 0:01:13]}  Rd2 {[%clk 0:00:38]} 27. Red1 {[%clk 0:00:54]}  Rxd1+ {[%clk 0:00:35]} 28. Rxd1 {[%clk 0:00:54]}  e4 {[%clk 0:00:26]} 29. Bxe4 {[%clk 0:00:48]}  a3 {[%clk 0:00:26]} 30. c7 {[%clk 0:00:47]}  a2 {[%clk 0:00:25]} 31. d6 {[%clk 0:00:46]}  a1=Q {[%clk 0:00:22]} 32. Rxa1 {[%clk 0:00:41]}  Rxa1+ {[%clk 0:00:23]} 33. Kf2 {[%clk 0:00:40]}  Rc1 {[%clk 0:00:22]} 34. Bd5 {[%clk 0:00:29]}  Be5 {[%clk 0:00:19]} 35. Bb7 {[%clk 0:00:24]}  Bxd6 {[%clk 0:00:18]} 36. c8=Q+ {[%clk 0:00:24]}  Rxc8 {[%clk 0:00:19]} 37. Bxc8 {[%clk 0:00:24]}  Kg7 {[%clk 0:00:19]} 38. Kf3 {[%clk 0:00:25]}  f5 {[%clk 0:00:19]} 39. g4 {[%clk 0:00:24]}  fxg4+ {[%clk 0:00:19]} 40. Kxg4 {[%clk 0:00:19]}  Kf6 {[%clk 0:00:19]} 41. Ba6 {[%clk 0:00:18]}  h5+ {[%clk 0:00:19]} 42. Kf3 {[%clk 0:00:18]}  g5 {[%clk 0:00:19]} 43. Ke4 {[%clk 0:00:17]}  g4 {[%clk 0:00:19]} 44. Kd5 {[%clk 0:00:16]}  g3 {[%clk 0:00:15]} 45. Bf1 {[%clk 0:00:15]}  Bb8 {[%clk 0:00:15]} 46. Ke4 {[%clk 0:00:13]}  Bc7 {[%clk 0:00:14]} 47. Kf3 {[%clk 0:00:13]}  Bd6 {[%clk 0:00:13]} 48. Be2 {[%clk 0:00:13]}  Kg5 {[%clk 0:00:11]} 49. Kg2 {[%clk 0:00:10]}  Kh4 {[%clk 0:00:09]} 50. e4 {[%clk 0:00:08]}  Kg5 {[%clk 0:00:08]} 51. Bf3 {[%clk 0:00:07]}  Be5 {[%clk 0:00:08]} 52. Bd1 {[%clk 0:00:07]}  h4 {[%clk 0:00:07]} 53. Bg4 {[%clk 0:00:06]}  Kf4 {[%clk 0:00:07]} 54. Bf5 {[%clk 0:00:07]}  Bd6 {[%clk 0:00:07]} 55. Bg6 {[%clk 0:00:07]}  Be5 {[%clk 0:00:08]} 56. Bh7 {[%clk 0:00:07]}  Bd6 {[%clk 0:00:08]} 57. Bf5 {[%clk 0:00:08]}  Be5 {[%clk 0:00:09]} 58. Bc8 {[%clk 0:00:08]}  Bd6 {[%clk 0:00:10]} 59. Bb7 {[%clk 0:00:09]}  Be5 {[%clk 0:00:10]} 60. Bd5 {[%clk 0:00:09]}  Bd6 {[%clk 0:00:11]} 61. Ba8 {[%clk 0:00:10]}  Be5 {[%clk 0:00:12]} 62. Bb7 {[%clk 0:00:10]}  Bd6 {[%clk 0:00:13]} 63. e5 {[%clk 0:00:11]}  Bxe5 {[%clk 0:00:14]} 64. Bf3 {[%clk 0:00:12]}  Bd4 {[%clk 0:00:14]} 65. Bd1 {[%clk 0:00:13]}  Be5 {[%clk 0:00:14]} 66. Bf3 {[%clk 0:00:14]}  Ke3 {[%clk 0:00:15]} 67. Bd1 {[%clk 0:00:15]}  Bf4 {[%clk 0:00:16]} 68. Bg4 {[%clk 0:00:16]}  Be5 {[%clk 0:00:15]} 69. Bh5 {[%clk 0:00:16]}  Kd2 {[%clk 0:00:16]} 70. Bg4 {[%clk 0:00:17]}  Ke1 {[%clk 0:00:16]} 71. Bh5 {[%clk 0:00:18]}  Bd6 {[%clk 0:00:17]} 72. Bg4 {[%clk 0:00:19]}  Be7 {[%clk 0:00:17]} 73. Bh5 {[%clk 0:00:20]}  Bd8 {[%clk 0:00:18]} 74. Bg4 {[%clk 0:00:21]}  Be7 {[%clk 0:00:18]} 75. Bh5 {[%clk 0:00:22]}  Bd8 {[%clk 0:00:19]} 76. Bg4 {[%clk 0:00:23]}  Be7 {[%clk 0:00:20]} 1/2-1/2


[Site "https://www.chess.com"]

[Event "Titled Tuesday Blitz December 13 Early 2022"]
[White "Khamdamova, Afruza"]
[Black "Tsatsalashvili, Keti"]
[WhiteFideId "14210444"]
[BlackFideId "13603434"]
[WhiteElo "2018"]
[BlackElo "2220"]
[Result "0-1"]
[Round "04"]
[TimeControl "180+1"]
[Date "2022.12.14"]
[WhiteClock "0:00:13"]
[BlackClock "0:01:18"]

1. e4 {[%clk 0:03:00]}  c5 {[%clk 0:02:57]} 2. Nf3 {[%clk 0:03:00]}  d6 {[%clk 0:02:57]} 3. Bb5+ {[%clk 0:02:59]}  Nd7 {[%clk 0:02:57]} 4. O-O {[%clk 0:02:59]}  Nf6 {[%clk 0:02:55]} 5. Nc3 {[%clk 0:02:58]}  a6 {[%clk 0:02:53]} 6. Bxd7+ {[%clk 0:02:57]}  Bxd7 {[%clk 0:02:53]} 7. d4 {[%clk 0:02:58]}  cxd4 {[%clk 0:02:53]} 8. Qxd4 {[%clk 0:02:57]}  g6 {[%clk 0:02:44]} 9. Bg5 {[%clk 0:02:54]}  Bg7 {[%clk 0:02:43]} 10. Nd5 {[%clk 0:02:48]}  O-O {[%clk 0:02:33]} 11. Bxf6 {[%clk 0:02:45]}  exf6 {[%clk 0:02:32]} 12. Rfd1 {[%clk 0:02:36]}  f5 {[%clk 0:02:28]} 13. Qb4 {[%clk 0:02:29]}  fxe4 {[%clk 0:02:26]} 14. Qxe4 {[%clk 0:02:28]}  Re8 {[%clk 0:02:24]} 15. Qb4 {[%clk 0:02:23]}  Bc6 {[%clk 0:02:18]} 16. Nb6 {[%clk 0:02:10]}  Bxf3 {[%clk 0:02:08]} 17. gxf3 {[%clk 0:02:07]}  Rb8 {[%clk 0:01:57]} 18. Rxd6 {[%clk 0:01:50]}  Qg5+ {[%clk 0:01:55]} 19. Qg4 {[%clk 0:01:49]}  Qc5 {[%clk 0:01:51]} 20. Rad1 {[%clk 0:01:43]}  Qxc2 {[%clk 0:01:38]} 21. Nd7 {[%clk 0:01:30]}  Rbc8 {[%clk 0:01:34]} 22. R1d2 {[%clk 0:01:25]}  Qb1+ {[%clk 0:01:24]} 23. Kg2 {[%clk 0:01:19]}  Rc1 {[%clk 0:01:24]} 24. Kh3 {[%clk 0:01:10]}  Rg1 {[%clk 0:01:23]} 25. Qc4 {[%clk 0:00:16]}  Qf5+ {[%clk 0:01:19]} 26. Kh4 {[%clk 0:00:13]}  Qh5# {[%clk 0:01:18]} 0-1


[Site "https://www.chess.com"]

[Event "Titled Tuesday Blitz December 13 Early 2022"]
[White "Koellner, Ruben Gideon"]
[Black "Javakhishvili, Lela"]
[WhiteFideId "12993093"]
[BlackFideId "13601458"]
[WhiteElo "2303"]
[BlackElo "2364"]
[Result "1-0"]
[Round "04"]
[TimeControl "180+1"]
[Date "2022.12.14"]
[WhiteClock "0:00:32"]
[BlackClock "0:00:04"]

1. d4 {[%clk 0:03:00]}  Nf6 {[%clk 0:02:58]} 2. Nf3 {[%clk 0:02:56]}  e6 {[%clk 0:02:54]} 3. Nbd2 {[%clk 0:02:56]}  d5 {[%clk 0:02:50]} 4. e3 {[%clk 0:02:56]}  Bd6 {[%clk 0:02:47]} 5. Bd3 {[%clk 0:02:56]}  c5 {[%clk 0:02:47]} 6. c3 {[%clk 0:02:56]}  Nc6 {[%clk 0:02:46]} 7. O-O {[%clk 0:02:57]}  O-O {[%clk 0:02:44]} 8. dxc5 {[%clk 0:02:57]}  Bxc5 {[%clk 0:02:44]} 9. b4 {[%clk 0:02:58]}  Bd6 {[%clk 0:02:44]} 10. Bb2 {[%clk 0:02:58]}  e5 {[%clk 0:02:21]} 11. e4 {[%clk 0:02:58]}  Bg4 {[%clk 0:02:16]} 12. h3 {[%clk 0:02:57]}  Bh5 {[%clk 0:02:13]} 13. exd5 {[%clk 0:02:57]}  Nxd5 {[%clk 0:02:11]} 14. Qc2 {[%clk 0:02:57]}  Bg6 {[%clk 0:02:03]} 15. Bxg6 {[%clk 0:02:57]}  hxg6 {[%clk 0:02:02]} 16. Rfd1 {[%clk 0:02:57]}  Qc7 {[%clk 0:01:49]} 17. Nc4 {[%clk 0:02:48]}  Nce7 {[%clk 0:01:27]} 18. Nxd6 {[%clk 0:01:38]}  Qxd6 {[%clk 0:01:28]} 19. c4 {[%clk 0:01:18]}  Nxb4 {[%clk 0:01:17]} 20. Qc3 {[%clk 0:01:14]}  Qc5 {[%clk 0:01:13]} 21. Nxe5 {[%clk 0:01:08]}  Nf5 {[%clk 0:00:22]} 22. Nd7 {[%clk 0:01:03]}  Qe7 {[%clk 0:00:21]} 23. Nxf8 {[%clk 0:01:03]}  Qxf8 {[%clk 0:00:21]} 24. Ba3 {[%clk 0:00:56]}  a5 {[%clk 0:00:21]} 25. Rdb1 {[%clk 0:00:52]}  Rd8 {[%clk 0:00:16]} 26. Bxb4 {[%clk 0:00:52]}  axb4 {[%clk 0:00:17]} 27. Qxb4 {[%clk 0:00:51]}  Qe8 {[%clk 0:00:15]} 28. Qxb7 {[%clk 0:00:47]}  Nd4 {[%clk 0:00:15]} 29. Re1 {[%clk 0:00:44]}  Qa4 {[%clk 0:00:14]} 30. c5 {[%clk 0:00:40]}  Qc2 {[%clk 0:00:09]} 31. Qe7 {[%clk 0:00:37]}  Rd5 {[%clk 0:00:07]} 32. Rac1 {[%clk 0:00:35]}  Ne2+ {[%clk 0:00:06]} 33. Qxe2 {[%clk 0:00:34]}  Rd2 {[%clk 0:00:03]} 34. Qe8+ {[%clk 0:00:33]}  Kh7 {[%clk 0:00:04]} 35. Rxc2 {[%clk 0:00:32]} 1-0


[Site "https://www.chess.com"]

[Event "Titled Tuesday Blitz December 13 Early 2022"]
[White "Kozlov, Gennady"]
[Black "Tan, Zhongyi"]
[WhiteFideId "4191668"]
[BlackFideId "8603642"]
[WhiteElo "2356"]
[BlackElo "2510"]
[Result "1/2-1/2"]
[Round "04"]
[TimeControl "180+1"]
[Date "2022.12.14"]
[WhiteClock "0:00:55"]
[BlackClock "0:00:12"]

1. b3 {[%clk 0:03:00]}  Nf6 {[%clk 0:02:57]} 2. Bb2 {[%clk 0:03:01]}  g6 {[%clk 0:02:57]} 3. e3 {[%clk 0:03:01]}  Bg7 {[%clk 0:02:57]} 4. f4 {[%clk 0:03:02]}  d6 {[%clk 0:02:52]} 5. Nf3 {[%clk 0:03:01]}  Nc6 {[%clk 0:02:51]} 6. Be2 {[%clk 0:03:02]}  O-O {[%clk 0:02:50]} 7. O-O {[%clk 0:03:03]}  e5 {[%clk 0:02:50]} 8. fxe5 {[%clk 0:03:02]}  Nd7 {[%clk 0:02:49]} 9. d3 {[%clk 0:03:00]}  Ncxe5 {[%clk 0:02:42]} 10. Nxe5 {[%clk 0:03:00]}  dxe5 {[%clk 0:02:42]} 11. e4 {[%clk 0:02:59]}  c6 {[%clk 0:02:37]} 12. Nd2 {[%clk 0:02:59]}  Qe7 {[%clk 0:02:36]} 13. a4 {[%clk 0:02:59]}  Re8 {[%clk 0:02:35]} 14. Ba3 {[%clk 0:02:57]}  c5 {[%clk 0:02:33]} 15. Qe1 {[%clk 0:02:57]}  b6 {[%clk 0:02:31]} 16. Qf2 {[%clk 0:02:57]}  Nf8 {[%clk 0:02:30]} 17. Nc4 {[%clk 0:02:55]}  Ba6 {[%clk 0:02:28]} 18. Ne3 {[%clk 0:02:55]}  Bb7 {[%clk 0:02:28]} 19. Bg4 {[%clk 0:02:49]}  h5 {[%clk 0:02:26]} 20. Bh3 {[%clk 0:02:48]}  Rad8 {[%clk 0:02:25]} 21. Rae1 {[%clk 0:02:47]}  Ne6 {[%clk 0:02:20]} 22. Bxe6 {[%clk 0:02:45]}  Qxe6 {[%clk 0:02:20]} 23. Bc1 {[%clk 0:02:43]}  a6 {[%clk 0:02:17]} 24. Qh4 {[%clk 0:02:38]}  Rd7 {[%clk 0:02:13]} 25. g4 {[%clk 0:02:37]}  hxg4 {[%clk 0:02:07]} 26. Nxg4 {[%clk 0:02:38]}  f5 {[%clk 0:02:07]} 27. Nh6+ {[%clk 0:02:23]}  Bxh6 {[%clk 0:02:06]} 28. Qxh6 {[%clk 0:02:23]}  f4 {[%clk 0:01:57]} 29. Kh1 {[%clk 0:02:06]}  Rh7 {[%clk 0:01:51]} 30. Qg5 {[%clk 0:02:06]}  Rh5 {[%clk 0:01:43]} 31. Qg2 {[%clk 0:02:06]}  Re7 {[%clk 0:01:36]} 32. Re2 {[%clk 0:02:02]}  Reh7 {[%clk 0:01:36]} 33. Rg1 {[%clk 0:02:01]}  Kf7 {[%clk 0:01:33]} 34. Qf3 {[%clk 0:02:00]}  Rh3 {[%clk 0:01:30]} 35. Qf1 {[%clk 0:01:55]}  Qf6 {[%clk 0:01:25]} 36. Rf2 {[%clk 0:01:55]}  Ke8 {[%clk 0:01:19]} 37. Rgg2 {[%clk 0:01:50]}  Qh4 {[%clk 0:01:13]} 38. Qg1 {[%clk 0:01:46]}  Kf7 {[%clk 0:00:55]} 39. Rxg6 {[%clk 0:01:28]}  Rxh2+ {[%clk 0:00:39]} 40. Rxh2 {[%clk 0:01:29]}  Qxh2+ {[%clk 0:00:39]} 41. Qxh2 {[%clk 0:01:29]}  Rxh2+ {[%clk 0:00:39]} 42. Kxh2 {[%clk 0:01:29]}  Kxg6 {[%clk 0:00:40]} 43. Kg2 {[%clk 0:01:28]}  Kf6 {[%clk 0:00:39]} 44. Kf3 {[%clk 0:01:27]}  Bc6 {[%clk 0:00:39]} 45. c3 {[%clk 0:01:26]}  Be8 {[%clk 0:00:38]} 46. d4 {[%clk 0:01:24]}  Bh5+ {[%clk 0:00:38]} 47. Kf2 {[%clk 0:01:23]}  Bd1 {[%clk 0:00:36]} 48. dxc5 {[%clk 0:01:18]}  bxc5 {[%clk 0:00:37]} 49. b4 {[%clk 0:01:18]}  Bxa4 {[%clk 0:00:32]} 50. bxc5 {[%clk 0:01:17]}  a5 {[%clk 0:00:28]} 51. Bb2 {[%clk 0:01:08]}  Bc6 {[%clk 0:00:23]} 52. Kf3 {[%clk 0:01:07]}  a4 {[%clk 0:00:24]} 53. c4 {[%clk 0:01:07]}  Ke6 {[%clk 0:00:23]} 54. Ba3 {[%clk 0:01:07]}  Bb7 {[%clk 0:00:22]} 55. Bb2 {[%clk 0:01:06]}  Ba6 {[%clk 0:00:22]} 56. Ke2 {[%clk 0:01:05]}  Bxc4+ {[%clk 0:00:22]} 57. Kf3 {[%clk 0:01:05]}  Bb5 {[%clk 0:00:22]} 58. Ba3 {[%clk 0:01:03]}  Bc4 {[%clk 0:00:19]} 59. Bb2 {[%clk 0:01:03]}  Bb5 {[%clk 0:00:19]} 60. Ba3 {[%clk 0:01:03]}  Be8 {[%clk 0:00:20]} 61. Bb2 {[%clk 0:01:03]}  Bh5+ {[%clk 0:00:20]} 62. Kf2 {[%clk 0:01:04]}  Bd1 {[%clk 0:00:14]} 63. Ba3 {[%clk 0:01:03]}  Bc2 {[%clk 0:00:14]} 64. Kf3 {[%clk 0:01:03]}  Bd1+ {[%clk 0:00:14]} 65. Kf2 {[%clk 0:01:03]}  f3 {[%clk 0:00:14]} 66. Bb2 {[%clk 0:01:01]}  Be2 {[%clk 0:00:14]} 67. Ba3 {[%clk 0:01:00]}  Kd7 {[%clk 0:00:12]} 68. Bb2 {[%clk 0:00:59]}  Kc6 {[%clk 0:00:12]} 69. Bxe5 {[%clk 0:00:58]}  Kxc5 {[%clk 0:00:13]} 70. Bb2 {[%clk 0:00:57]}  Kc4 {[%clk 0:00:13]} 71. e5 {[%clk 0:00:57]}  Kd5 {[%clk 0:00:13]} 72. Ke3 {[%clk 0:00:56]}  Ke6 {[%clk 0:00:13]} 73. Kf2 {[%clk 0:00:56]}  Kf5 {[%clk 0:00:12]} 74. Bc3 {[%clk 0:00:54]}  Bd1 {[%clk 0:00:12]} 75. Ba1 {[%clk 0:00:54]}  a3 {[%clk 0:00:12]} 76. Bc3 {[%clk 0:00:54]}  a2 {[%clk 0:00:13]} 77. Ba1 {[%clk 0:00:55]}  Ke6 {[%clk 0:00:13]} 78. Bb2 {[%clk 0:00:55]}  Kf5 {[%clk 0:00:12]} 79. Ba1 {[%clk 0:00:56]}  Ke4 {[%clk 0:00:12]} 80. Bb2 {[%clk 0:00:55]}  Bb3 {[%clk 0:00:12]} 81. Ba1 {[%clk 0:00:55]}  Bd5 {[%clk 0:00:11]} 82. Bb2 {[%clk 0:00:55]}  Kf4 {[%clk 0:00:12]} 83. Ba1 {[%clk 0:00:55]}  Be6 {[%clk 0:00:12]} 84. Bb2 {[%clk 0:00:56]}  Ke4 {[%clk 0:00:12]} 85. Ba1 {[%clk 0:00:57]}  Bg4 {[%clk 0:00:11]} 86. Bb2 {[%clk 0:00:57]}  Be6 {[%clk 0:00:11]} 87. Ba1 {[%clk 0:00:57]}  Bd5 {[%clk 0:00:12]} 88. Bb2 {[%clk 0:00:57]}  Kd3 {[%clk 0:00:12]} 89. Ba1 {[%clk 0:00:58]}  Kc2 {[%clk 0:00:12]} 90. e6 {[%clk 0:00:56]}  Bxe6 {[%clk 0:00:12]} 91. Kxf3 {[%clk 0:00:56]}  Kb1 {[%clk 0:00:12]} 92. Be5 {[%clk 0:00:56]}  a1=Q {[%clk 0:00:12]} 93. Bxa1 {[%clk 0:00:55]} 1/2-1/2


[Site "https://www.chess.com"]

[Event "Titled Tuesday Blitz December 13 Early 2022"]
[White "Lacasa Diaz, Jose Antonio"]
[Black "Tymrakiewicz, Rafal"]
[WhiteFideId "2203375"]
[BlackFideId "1108832"]
[WhiteElo "2338"]
[BlackElo "2139"]
[Result "0-1"]
[Round "04"]
[TimeControl "180+1"]
[Date "2022.12.14"]
[WhiteClock "0:00:15"]
[BlackClock "0:00:16"]

1. e4 {[%clk 0:03:00]}  Nf6 {[%clk 0:02:46]} 2. e5 {[%clk 0:02:59]}  Nd5 {[%clk 0:02:45]} 3. Nc3 {[%clk 0:03:00]}  c6 {[%clk 0:02:42]} 4. d4 {[%clk 0:02:57]}  d6 {[%clk 0:02:41]} 5. Nf3 {[%clk 0:02:51]}  Bg4 {[%clk 0:02:40]} 6. Nxd5 {[%clk 0:02:37]}  cxd5 {[%clk 0:02:40]} 7. h3 {[%clk 0:02:28]}  Bxf3 {[%clk 0:02:37]} 8. Qxf3 {[%clk 0:02:28]}  e6 {[%clk 0:02:37]} 9. Bd3 {[%clk 0:02:24]}  dxe5 {[%clk 0:02:32]} 10. dxe5 {[%clk 0:02:22]}  Nc6 {[%clk 0:02:33]} 11. Bf4 {[%clk 0:02:20]}  Qc7 {[%clk 0:02:06]} 12. O-O {[%clk 0:02:16]}  Be7 {[%clk 0:01:46]} 13. Rfe1 {[%clk 0:02:10]}  O-O-O {[%clk 0:01:41]} 14. Bg3 {[%clk 0:01:58]}  Rdf8 {[%clk 0:01:39]} 15. c4 {[%clk 0:01:52]}  d4 {[%clk 0:01:24]} 16. a3 {[%clk 0:01:46]}  h5 {[%clk 0:01:05]} 17. b4 {[%clk 0:01:43]}  g5 {[%clk 0:01:04]} 18. Qe4 {[%clk 0:01:28]}  Rfg8 {[%clk 0:01:00]} 19. c5 {[%clk 0:01:21]}  a6 {[%clk 0:00:47]} 20. Rab1 {[%clk 0:01:08]}  h4 {[%clk 0:00:47]} 21. Bh2 {[%clk 0:01:08]}  g4 {[%clk 0:00:48]} 22. hxg4 {[%clk 0:01:06]}  h3 {[%clk 0:00:47]} 23. b5 {[%clk 0:01:01]}  axb5 {[%clk 0:00:47]} 24. Rxb5 {[%clk 0:01:00]}  hxg2 {[%clk 0:00:28]} 25. Reb1 {[%clk 0:00:56]}  f5 {[%clk 0:00:25]} 26. Qe2 {[%clk 0:00:32]}  Nd8 {[%clk 0:00:25]} 27. gxf5 {[%clk 0:00:20]}  Bg5 {[%clk 0:00:15]} 28. f6 {[%clk 0:00:15]}  Bf4 {[%clk 0:00:16]} 0-1


[Site "https://www.chess.com"]

[Event "Titled Tuesday Blitz December 13 Early 2022"]
[White "Lamaze, Simon"]
[Black "Goldin, Roman"]
[WhiteFideId "36069264"]
[BlackFideId "2803860"]
[WhiteElo "2272"]
[BlackElo "2312"]
[Result "1-0"]
[Round "04"]
[TimeControl "180+1"]
[Date "2022.12.14"]
[WhiteClock "0:00:18"]
[BlackClock "0:00:06"]

1. e4 {[%clk 0:02:49]}  Nc6 {[%clk 0:02:59]} 2. Nf3 {[%clk 0:02:48]}  e5 {[%clk 0:02:59]} 3. Bb5 {[%clk 0:02:47]}  a6 {[%clk 0:02:59]} 4. Ba4 {[%clk 0:02:47]}  Nf6 {[%clk 0:02:59]} 5. O-O {[%clk 0:02:47]}  Be7 {[%clk 0:02:59]} 6. Re1 {[%clk 0:02:46]}  d6 {[%clk 0:02:59]} 7. c3 {[%clk 0:02:45]}  Bg4 {[%clk 0:02:59]} 8. h3 {[%clk 0:02:45]}  Bh5 {[%clk 0:02:59]} 9. Bc2 {[%clk 0:02:45]}  O-O {[%clk 0:02:50]} 10. d3 {[%clk 0:02:45]}  Nd7 {[%clk 0:02:46]} 11. Nbd2 {[%clk 0:02:36]}  Bg5 {[%clk 0:02:43]} 12. g4 {[%clk 0:02:13]}  Bxd2 {[%clk 0:02:41]} 13. Bxd2 {[%clk 0:02:12]}  Bg6 {[%clk 0:02:41]} 14. d4 {[%clk 0:02:06]}  exd4 {[%clk 0:02:01]} 15. cxd4 {[%clk 0:02:05]}  d5 {[%clk 0:01:56]} 16. e5 {[%clk 0:02:03]}  Re8 {[%clk 0:01:35]} 17. h4 {[%clk 0:01:48]}  Nf8 {[%clk 0:01:29]} 18. Bf5 {[%clk 0:01:29]}  Ne6 {[%clk 0:01:26]} 19. Be3 {[%clk 0:01:27]}  h5 {[%clk 0:01:19]} 20. Kh2 {[%clk 0:01:15]}  hxg4 {[%clk 0:01:14]} 21. Bxg4 {[%clk 0:01:16]}  Be4 {[%clk 0:01:10]} 22. Rg1 {[%clk 0:01:11]}  Bxf3 {[%clk 0:01:04]} 23. Qxf3 {[%clk 0:01:11]}  Qxh4+ {[%clk 0:00:59]} 24. Qh3 {[%clk 0:00:53]}  Qxh3+ {[%clk 0:00:58]} 25. Kxh3 {[%clk 0:00:54]}  Nexd4 {[%clk 0:00:52]} 26. Rac1 {[%clk 0:00:50]}  Rxe5 {[%clk 0:00:38]} 27. Bxd4 {[%clk 0:00:50]}  Nxd4 {[%clk 0:00:38]} 28. Rxc7 {[%clk 0:00:51]}  g6 {[%clk 0:00:30]} 29. Rxb7 {[%clk 0:00:47]}  Kg7 {[%clk 0:00:31]} 30. Kg3 {[%clk 0:00:47]}  Nf5+ {[%clk 0:00:16]} 31. Bxf5 {[%clk 0:00:21]}  Rxf5 {[%clk 0:00:15]} 32. Re1 {[%clk 0:00:21]}  Rc8 {[%clk 0:00:13]} 33. Ree7 {[%clk 0:00:19]}  Rc2 {[%clk 0:00:12]} 34. f3 {[%clk 0:00:18]}  Rd2 {[%clk 0:00:12]} 35. Re3 {[%clk 0:00:16]}  d4 {[%clk 0:00:12]} 36. Ra3 {[%clk 0:00:16]}  Rb5 {[%clk 0:00:05]} 37. Rxb5 {[%clk 0:00:16]}  axb5 {[%clk 0:00:05]} 38. Rb3 {[%clk 0:00:16]}  g5 {[%clk 0:00:03]} 39. f4 {[%clk 0:00:16]}  gxf4+ {[%clk 0:00:02]} 40. Kxf4 {[%clk 0:00:17]}  Kf6 {[%clk 0:00:02]} 41. Rxb5 {[%clk 0:00:17]}  Rd1 {[%clk 0:00:02]} 42. Rb6+ {[%clk 0:00:17]}  Ke7 {[%clk 0:00:01]} 43. Ke4 {[%clk 0:00:18]}  d3 {[%clk 0:00:01]} 44. Ke3 {[%clk 0:00:19]}  d2 {[%clk 0:00:02]} 45. Ke2 {[%clk 0:00:19]}  Ra1 {[%clk 0:00:02]} 46. Kxd2 {[%clk 0:00:19]}  Rxa2 {[%clk 0:00:03]} 47. Kc3 {[%clk 0:00:20]}  Ra7 {[%clk 0:00:03]} 48. Kc4 {[%clk 0:00:20]}  Rc7+ {[%clk 0:00:03]} 49. Kd5 {[%clk 0:00:20]}  f6 {[%clk 0:00:04]} 50. b4 {[%clk 0:00:19]}  Kf7 {[%clk 0:00:04]} 51. Rd6 {[%clk 0:00:18]}  Kg6 {[%clk 0:00:04]} 52. b5 {[%clk 0:00:18]}  Kg5 {[%clk 0:00:04]} 53. b6 {[%clk 0:00:18]}  Rb7 {[%clk 0:00:03]} 54. Kc6 {[%clk 0:00:19]}  Rb8 {[%clk 0:00:03]} 55. Kc7 {[%clk 0:00:20]}  Rg8 {[%clk 0:00:03]} 56. b7 {[%clk 0:00:20]}  f5 {[%clk 0:00:03]} 57. Rd8 {[%clk 0:00:20]}  Rg7+ {[%clk 0:00:04]} 58. Rd7 {[%clk 0:00:21]}  Rg8 {[%clk 0:00:04]} 59. Rd8 {[%clk 0:00:13]}  Rg7+ {[%clk 0:00:05]} 60. Kc6 {[%clk 0:00:13]}  Rxb7 {[%clk 0:00:04]} 61. Kxb7 {[%clk 0:00:14]}  f4 {[%clk 0:00:05]} 62. Rf8 {[%clk 0:00:15]}  Kg4 {[%clk 0:00:05]} 63. Kc6 {[%clk 0:00:16]}  f3 {[%clk 0:00:05]} 64. Kd5 {[%clk 0:00:16]}  Kg3 {[%clk 0:00:05]} 65. Ke4 {[%clk 0:00:17]}  f2 {[%clk 0:00:06]} 66. Ke3 {[%clk 0:00:18]} 1-0


[Site "https://www.chess.com"]

[Event "Titled Tuesday Blitz December 13 Early 2022"]
[White "Lauridsen, Jesper Morch"]
[Black "Kodinets, Konstantin L."]
[WhiteFideId "1401890"]
[BlackFideId "4122011"]
[WhiteElo "2286"]
[BlackElo "2447"]
[Result "1-0"]
[Round "04"]
[TimeControl "180+1"]
[Date "2022.12.14"]
[WhiteClock "0:02:13"]
[BlackClock "0:03:04"]

1. e4 {[%clk 0:03:00]}  e5 {[%clk 0:02:59]} 2. Nf3 {[%clk 0:03:00]}  d6 {[%clk 0:03:00]} 3. d4 {[%clk 0:02:59]}  exd4 {[%clk 0:03:01]} 4. Qxd4 {[%clk 0:02:58]}  Nf6 {[%clk 0:03:02]} 5. Nc3 {[%clk 0:02:57]}  Be7 {[%clk 0:03:02]} 6. Bg5 {[%clk 0:02:53]}  h6 {[%clk 0:03:02]} 7. Bh4 {[%clk 0:02:44]}  Nc6 {[%clk 0:03:02]} 8. Bb5 {[%clk 0:02:43]}  O-O {[%clk 0:03:02]} 9. Bxc6 {[%clk 0:02:42]}  bxc6 {[%clk 0:03:03]} 10. O-O-O {[%clk 0:02:32]}  Nd7 {[%clk 0:03:03]} 11. Bxe7 {[%clk 0:02:18]}  Qxe7 {[%clk 0:03:04]} 12. Rhe1 {[%clk 0:02:16]}  a5 {[%clk 0:03:04]} 13. e5 {[%clk 0:02:13]} 1-0


[Site "https://www.chess.com"]